fUST/lending_fUST_20260304
["ID","MTS","AMOUNT","RATE_DAILY","PERIOD"]
[407638172,1772589038992,-500.0,9.989e-05,2]
[407638173,1772589039005,-500.0,9.989e-05,2]
[407638174,1772589039019,-500.0,9.989e-05,2]
[407638175,1772589039032,-500.0,9.989e-05,2]
[407638176,1772589039047,-500.0,9.989e-05,2]
[407638177,1772589039064,-500.0,9.989e-05,2]
[407638178,1772589039079,-500.0,9.989e-05,2]
[407638179,1772589039090,-500.0,9.989e-05,2]
[407638180,1772589039101,-500.0,9.989e-05,2]
[407638181,1772589039115,-500.0,9.989e-05,2]
[407638182,1772589039131,-500.0,9.989e-05,2]
[407638183,1772589039143,-500.0,9.989e-05,2]
[407638184,1772589039155,-500.0,9.989e-05,2]
[407638185,1772589039170,-500.0,9.989e-05,2]
[407638186,1772589039182,-500.0,9.989e-05,2]
[407638187,1772589039193,-500.0,9.989e-05,2]
[407638188,1772589039205,-500.0,9.989e-05,2]
[407638189,1772589039217,-500.0,9.989e-05,2]
[407638190,1772589039235,-500.0,9.989e-05,2]
[407638191,1772589039248,-500.0,9.989e-05,2]
[407638192,1772589039260,-500.0,9.989e-05,2]
[407638193,1772589039275,-500.0,9.989e-05,2]
[407638194,1772589039288,-500.0,9.989e-05,2]
[407638195,1772589039300,-500.0,9.989e-05,2]
[407638196,1772589039312,-500.0,9.989e-05,2]
[407638197,1772589039326,-500.0,9.989e-05,2]
[407638198,1772589039339,-500.0,9.989e-05,2]
[407638199,1772589039351,-500.0,9.989e-05,2]
[407638200,1772589039364,-500.0,9.989e-05,2]
[407638201,1772589039378,-500.0,9.989e-05,2]
[407638202,1772589039390,-500.0,9.989e-05,2]
[407638203,1772589039402,-500.0,9.989e-05,2]
[407638204,1772589039415,-500.0,9.989e-05,2]
[407638205,1772589039427,-500.0,9.989e-05,2]
[407638206,1772589039440,-500.0,9.989e-05,2]
[407638207,1772589039454,-500.0,9.989e-05,2]
[407638208,1772589039467,-419.42861281,9.989e-05,2]
[407638209,1772589039481,-500.0,9.989e-05,2]
[407638210,1772589039494,-500.0,9.989e-05,2]
[407638211,1772589039508,-500.0,9.989e-05,2]
[407638212,1772589039520,-500.0,9.989e-05,2]
[407638213,1772589039534,-500.0,9.989e-05,2]
[407638214,1772589039546,-500.0,9.989e-05,2]
[407638215,1772589039560,-500.0,9.989e-05,2]
[407638216,1772589039573,-500.0,9.989e-05,2]
[407638217,1772589039586,-500.0,9.989e-05,2]
[407638218,1772589039599,-500.0,9.989e-05,2]
[407638219,1772589039613,-500.0,9.989e-05,2]
[407638220,1772589039626,-500.0,9.989e-05,2]
[407638221,1772589039639,-500.0,9.989e-05,2]
[407638222,1772589039651,-500.0,9.989e-05,2]
[407638223,1772589039663,-500.0,9.989e-05,2]
[407638224,1772589039678,-500.0,9.989e-05,2]
[407638225,1772589039694,-500.0,9.989e-05,2]
[407638226,1772589039708,-500.0,9.989e-05,2]
[407638227,1772589039720,-500.0,9.989e-05,2]
[407638228,1772589039733,-500.0,9.989e-05,2]
[407638229,1772589039746,-500.0,9.989e-05,2]
[407638230,1772589039759,-500.0,9.989e-05,2]
[407638231,1772589039771,-500.0,9.989e-05,2]
[407638232,1772589039785,-500.0,9.989e-05,2]
[407638233,1772589039797,-500.0,9.989e-05,2]
[407638234,1772589039810,-594.84711862,9.989e-05,2]
[407638235,1772589039823,-500.0,9.989e-05,2]
[407638236,1772589039836,-500.0,9.989e-05,2]
[407638237,1772589039848,-500.0,9.989e-05,2]
[407638238,1772589039863,-500.0,9.989e-05,2]
[407638239,1772589039877,-500.0,9.989e-05,2]
[407638240,1772589039891,-500.0,9.989e-05,2]
[407638241,1772589039904,-500.0,9.989e-05,2]
[407638242,1772589039916,-500.0,9.989e-05,2]
[407638243,1772589039929,-500.0,9.989e-05,2]
[407638244,1772589039941,-500.0,9.989e-05,2]
[407638245,1772589039953,-500.0,9.989e-05,2]
[407638246,1772589039965,-500.0,9.989e-05,2]
[407638247,1772589039978,-500.0,9.989e-05,2]
[407638248,1772589039990,-500.0,9.989e-05,2]
[407638249,1772589040002,-500.0,9.989e-05,2]
[407638250,1772589040014,-500.0,9.989e-05,2]
[407638251,1772589040026,-500.0,9.989e-05,2]
[407638252,1772589040039,-500.0,9.989e-05,2]
[407638253,1772589040050,-164.9,9.99e-05,2]
[407638254,1772589040063,-174.66165947,9.991e-05,2]
[407638255,1772589040076,-555.0,9.991e-05,2]
[407638256,1772589040088,-2480.3398499,9.994e-05,2]
[407638257,1772589040101,-1257.8656632,9.994e-05,2]
[407638258,1772589040114,-1909.2035175,9.994e-05,2]
[407638259,1772589040126,-500.0,9.994e-05,2]
[407638260,1772589040137,-525.35467787,9.994e-05,2]
[407638261,1772589040149,-500.0,9.994e-05,2]
[407638262,1772589040161,-500.0,9.994e-05,2]
[407638263,1772589040173,-500.0,9.994e-05,2]
[407638264,1772589040185,-168.3888056,9.994e-05,2]
[407638265,1772589040197,-500.0,9.994e-05,2]
[407638266,1772589040209,-250.0,9.994e-05,2]
[407638267,1772589040220,-500.0,9.994e-05,2]
[407638268,1772589040233,-250.0,9.994e-05,2]
[407638269,1772589040245,-259.62717,9.994e-05,2]
[407638270,1772589040256,-250.0,9.994e-05,2]
[407638271,1772589040268,-250.0,9.994e-05,2]
[407638273,1772589040282,-174.61919141,9.994e-05,2]
[407638274,1772589040294,-250.0,9.994e-05,2]
[407638275,1772589040306,-500.0,9.994e-05,2]
[407638276,1772589040318,-250.0,9.994e-05,2]
[407638277,1772589040332,-500.0,9.994e-05,2]
[407638278,1772589040344,-168.7853156,9.994e-05,2]
[407638279,1772589040356,-557.5788265,9.994e-05,2]
[407638280,1772589040369,-250.0,9.994e-05,2]
[407638281,1772589040382,-500.0,9.994e-05,2]
[407638283,1772589040394,-250.0,9.994e-05,2]
[407638285,1772589040406,-181.08010149,9.994e-05,2]
[407638288,1772589040418,-250.0,9.994e-05,2]
[407638290,1772589040431,-187.78006525,9.994e-05,2]
[407638292,1772589040442,-194.72792766,9.994e-05,2]
[407638294,1772589040454,-201.93286099,9.994e-05,2]
[407638296,1772589040469,-282.11395173,9.994e-05,2]
[407638299,1772589040481,-500.0,9.994e-05,2]
[407638301,1772589040492,-500.0,9.994e-05,2]
[407638303,1772589040505,-531.16843939,9.994e-05,2]
[407638305,1772589040517,-500.0,9.994e-05,2]
[407638308,1772589040529,-209.40437684,9.994e-05,2]
[407638310,1772589040543,-500.0,9.994e-05,2]
[407638312,1772589040556,-500.0,9.994e-05,2]
[407638314,1772589040567,-217.15233878,9.994e-05,2]
[407638317,1772589040579,-500.0,9.994e-05,2]
[407638319,1772589040591,-225.18697532,9.994e-05,2]
[407638321,1772589040603,-500.0,9.994e-05,2]
[407638323,1772589040614,-233.51889341,9.994e-05,2]
[407638326,1772589040626,-242.15909246,9.994e-05,2]
[407638328,1772589040637,-500.0,9.994e-05,2]
[407638330,1772589040649,-250.0,9.994e-05,2]
[407638332,1772589040660,-251.11897888,9.994e-05,2]
[407638335,1772589040672,-500.0,9.994e-05,2]
[407638336,1772589040685,-250.0,9.994e-05,2]
[407638339,1772589040696,-260.4103811,9.994e-05,2]
[407638341,1772589040709,-342.56029596,9.994e-05,2]
[407638343,1772589040720,-250.0,9.994e-05,2]
[407638345,1772589040733,-270.0455652,9.994e-05,2]
[407638347,1772589040745,-250.0,9.994e-05,2]
[407638349,1772589040757,-280.03725112,9.994e-05,2]
[407638350,1772589040769,-305.7007654,9.994e-05,2]
[407638351,1772589040784,-461.67526834,9.994e-05,2]
[407638352,1772589040797,-290.39862941,9.994e-05,2]
[407638353,1772589040809,-301.1433787,9.994e-05,2]
[407638354,1772589040825,-200.26414336,9.994e-05,2]
[407638355,1772589040837,-156.79285329,9.994e-05,2]
[407638356,1772589040852,-174.66165945,9.996e-05,2]
[407638357,1772589040865,-355.48856947,9.999e-05,2]
[407638358,1772589040879,-365.92088329,9.999e-05,2]
[407638359,1772589040892,-18175.45675177,0.0001,2]
[407638360,1772589040905,-103434.70695474,0.0001,2]
[407638361,1772589040918,-647487.87203652,0.0001,2]
[407638362,1772589040930,-159.0,0.0001,2]
[407638363,1772589040943,-158.0,0.0001,2]
[407638364,1772589040956,-237.67340225,0.0001,2]
[407638365,1772589040968,-500.88226446,0.0001,2]
[407638366,1772589040980,-151.0,0.0001,2]
[407638367,1772589040992,-151.0,0.0001,2]
[407638368,1772589041004,-151.0,0.0001,2]
[407638369,1772589041017,-153.2731002,0.0001,2]
[407638370,1772589041030,-174.66165945,0.0001,2]
[407638371,1772589041042,-500.0,0.00010002,2]
[407638372,1772589041054,-6074.52530827,0.00010002,2]
[407638373,1772589041066,-934.53338673,0.00010002,2]
[407638374,1772589041077,-1998.44179032,0.00010002,2]
[407638375,1772589041088,-1604.96317721,0.00010002,2]
[407638376,1772589041100,-2105.41764886,0.00010037,2]
[407638377,1772589041112,-267.32631611,0.00010076,2]
[407638378,1772589041124,-658.65758993,0.00010076,2]
[407638379,1772589041136,-2183.31810187,0.00010092,2]
[407638380,1772589041146,-2264.10087164,0.00010147,2]
[407638381,1772589041156,-154.59293988,0.000102,2]
[407638382,1772589041165,-2347.87260389,0.00010202,2]
[407638383,1772589041175,-305.51578984,0.00010207,2]
[407638384,1772589041185,-1170.94682654,0.00010207,2]
[407638385,1772589041194,-997.704044,0.00010235,2]
[407638386,1772589041204,-2434.74389024,0.00010257,2]
[407638387,1772589041213,-187.79036699,0.00010276,2]
[407638388,1772589041223,-654.34,0.00010282,2]
[407638390,1772589041233,-2524.82941417,0.00010312,2]
[407638391,1772589041242,-476.8910532,0.00010339,2]
[407638392,1772589041251,-1827.77481205,0.00010339,2]
[407638393,1772589041672,-920.53106171,0.00010367,2]
[407638394,1772589041700,-1397.456,0.0001037,2]
[407638395,1772589041712,-2201.535,0.0001037,2]
[407638396,1772589041721,-638.0,0.0001037,2]
[407638397,1772589041731,-731.0,0.0001037,2]
[407638398,1772589041740,-433.0,0.0001037,2]
[407638399,1772589041749,-151.0,0.00010459,2]
[407638400,1772589041759,-2312.83697232,0.00010475,2]
[407638401,1772589041768,-160.0,0.00010518,3]
[407638402,1772589041777,-578.20924308,0.00010542,2]
[407638403,1772589041788,-617.53075809,0.00010542,2]
[407638404,1772589041798,-154.0,0.000106,2]
[407638405,1772589041807,-538.89899759,0.00010633,2]
[407638406,1772589041816,-188535.8624188,0.00010633,2]
[407638407,1772589041825,-997.704044,0.00010648,2]
[407638408,1772589041835,-583.40298317,0.00010663,2]
[407638409,1772589041844,-160.0,0.0001067,4]
[407638410,1772589041854,-1050.37371361,0.00010739,2]
[407638411,1772589041864,-153.943507,0.0001074,2]
[407638412,1772589041886,-800.0,0.00010743,2]
[407638413,1772589041897,-800.0,0.00010751,2]
[407638414,1772589041907,-800.0,0.00010767,2]
[407638415,1772589041917,-800.0,0.00010781,2]
[407638416,1772589041927,-800.0,0.00010789,2]
[407638417,1772589041938,-160.0,0.00010821,5]
[407638418,1772589041948,-800.0,0.00010838,2]
[407638419,1772589041957,-10678.73010945,0.00010858,2]
[407638420,1772589041968,-800.0,0.00010917,2]
[407638421,1772589041979,-420.0,0.00010919,2]
[407638422,1772589041990,-913.0,0.00010919,2]
[407638423,1772589042001,-751.57099638,0.00010922,2]
[407638424,1772589042012,-800.0,0.00010944,2]
[407638425,1772589042022,-182420.80254636,0.00010946,2]
[407638426,1772589042556,-13072.22824021,0.00010946,2]
[407638427,1772589043172,-17453.96159278,0.00010527,2]
[407638428,1772589043183,-2101.68662732,0.00010527,2]
[407638433,1772589045864,-2455.38369134,0.00010527,2]
[407638434,1772589045875,-8152.48274322,0.00010527,2]
[407638435,1772589045887,-4175.9349,0.00010527,2]
[407638436,1772589045897,-11322.54982896,0.00010527,2]
[407638448,1772589046340,-886.59985705,0.00010527,2]
[407638450,1772589046352,-11709.55348668,0.00010527,2]
[407638455,1772589046395,-67419.88261026,0.00010527,2]
[407638457,1772589046404,-146312.7417078,0.00010946,2]
[407638459,1772589046413,-500.0,0.00010958,2]
[407638461,1772589046423,-286.08629444,0.00010958,2]
[407638463,1772589046433,-500.0,0.00010958,2]
[407638465,1772589046443,-586.0,0.00010958,2]
[407638467,1772589046452,-500.0,0.00010958,2]
[407638469,1772589046464,-1429.91,0.00010958,2]
[407638471,1772589046475,-691.82,0.00010958,2]
[407638473,1772589046484,-500.0,0.00010958,2]
[407638475,1772589046493,-500.0,0.00010958,2]
[407638477,1772589046503,-500.0,0.00010958,2]
[407638479,1772589046513,-500.0,0.00010958,2]
[407638481,1772589046522,-500.0,0.00010958,2]
[407638483,1772589046531,-500.0,0.00010958,2]
[407638485,1772589046540,-500.0,0.00010958,2]
[407638487,1772589046551,-527.2,0.00010958,2]
[407638488,1772589046560,-500.0,0.00010958,2]
[407638490,1772589046572,-500.0,0.00010958,2]
[407638492,1772589046582,-967.94,0.00010958,2]
[407638494,1772589046591,-500.0,0.00010958,2]
[407638495,1772589046600,-500.0,0.00010958,2]
[407638496,1772589046609,-1223.03,0.00010958,2]
[407638497,1772589046619,-500.0,0.00010958,2]
[407638498,1772589046628,-500.0,0.00010958,2]
[407638499,1772589046638,-500.0,0.00010958,2]
[407638500,1772589046647,-500.0,0.00010958,2]
[407638501,1772589046657,-890.39,0.00010958,2]
[407638502,1772589046667,-500.0,0.00010958,2]
[407638503,1772589046939,-500.0,0.00010958,2]
[407638504,1772589046950,-500.0,0.00010958,2]
[407638505,1772589046962,-500.0,0.00010958,2]
[407638506,1772589046973,-2533.87,0.00010958,2]
[407638507,1772589046984,-500.0,0.00010958,2]
[407638508,1772589046995,-773.82,0.00010958,2]
[407638509,1772589047006,-500.0,0.00010958,2]
[407638510,1772589047016,-2043.98,0.00010958,2]
[407638511,1772589047026,-500.0,0.00010958,2]
[407638512,1772589047035,-858.63,0.00010958,2]
[407638513,1772589047046,-500.0,0.00010958,2]
[407638514,1772589047055,-729.12,0.00010958,2]
[407638515,1772589047065,-500.0,0.00010958,2]
[407638516,1772589047075,-1105.97,0.00010958,2]
[407638517,1772589047085,-500.0,0.00010958,2]
[407638518,1772589047095,-833.43,0.00010958,2]
[407638519,1772589047104,-87761.63781495,0.00010958,2]
[407638520,1772589047114,-294.99216691,0.00010958,2]
[407638521,1772589047124,-500.0,0.00010958,2]
[407638522,1772589047133,-545.88,0.00010958,2]
[407638523,1772589047143,-1393.52045236,0.00010958,2]
[407638524,1772589047158,-514.18954764,0.00010958,2]
[407638525,1772589047167,-500.0,0.00010958,2]
[407638526,1772589047179,-500.0,0.00010958,2]
[407638527,1772589047189,-725.21,0.00010958,2]
[407638528,1772589047199,-1969.44,0.00010958,2]
[407638529,1772589047209,-500.0,0.00010958,2]
[407638530,1772589047219,-802.59,0.00010958,2]
[407638531,1772589047228,-500.0,0.00010958,2]
[407638532,1772589047238,-846.82,0.00010958,2]
[407638533,1772589047248,-500.0,0.00010958,2]
[407638534,1772589047258,-500.0,0.00010958,2]
[407638535,1772589047267,-500.0,0.00010958,2]
[407638536,1772589047277,-500.0,0.00010958,2]
[407638537,1772589047287,-553.26081086,0.00010958,2]
[407638538,1772589047297,-500.0,0.00010958,2]
[407638539,1772589047307,-500.0,0.00010958,2]
[407638540,1772589047317,-500.0,0.00010958,2]
[407638541,1772589047327,-207.8707719,0.00010958,2]
[407638542,1772589047341,-292.1292281,0.00010958,2]
[407638543,1772589047351,-277.25077188,0.00010958,2]
[407638544,1772589047380,-222.74922812,0.00010958,2]
[407638545,1772589047390,-500.0,0.00010958,2]
[407638546,1772589047400,-500.0,0.00010958,2]
[407638547,1772589047410,-500.0,0.00010958,2]
[407638548,1772589047420,-500.0,0.00010958,2]
[407638549,1772589047430,-812.29,0.00010958,2]
[407638550,1772589047440,-500.0,0.00010958,2]
[407638551,1772589047450,-500.0,0.00010958,2]
[407638552,1772589047460,-500.0,0.00010958,2]
[407638553,1772589047471,-769.63,0.00010958,2]
[407638554,1772589047484,-500.0,0.00010958,2]
[407638555,1772589047494,-500.0,0.00010958,2]
[407638556,1772589047504,-500.0,0.00010958,2]
[407638557,1772589047516,-500.0,0.00010958,2]
[407638558,1772589047526,-2459.99,0.00010958,2]
[407638559,1772589047537,-774.65,0.00010958,2]
[407638560,1772589047549,-500.0,0.00010958,2]
[407638561,1772589047559,-212.33181133,0.00010958,2]
[407638562,1772589047572,-1082.77818867,0.00010958,2]
[407638563,1772589047582,-500.0,0.00010958,2]
[407638564,1772589047592,-941.86,0.00010958,2]
[407638565,1772589047604,-500.0,0.00010958,2]
[407638566,1772589047614,-361.41818267,0.00010958,2]
[407638567,1772589047624,-525.47,0.00010958,2]
[407638568,1772589047634,-221.28076578,0.00010958,2]
[407638576,1772589685804,2407.32533234,9.502e-05,2]
[407638579,1772590202354,181.14,6.9e-05,2]
[407638750,1772590238558,-522.89936734,9.991e-05,2]
[407638752,1772590238568,-560.0,9.991e-05,2]
[407638754,1772590238579,-155.0,9.996e-05,2]
[407638756,1772590238589,-503.1,0.0001,2]
[407638758,1772590238599,-430.043,0.00010416,2]
[407638760,1772590238609,-731.0,0.00010416,2]
[407638762,1772590238619,-300.0,0.00010458,2]
[407638764,1772590238629,-151.0,0.00010459,2]
[407638766,1772590238639,-151.0,0.00010459,2]
[407638768,1772590238649,-151.0,0.00010459,2]
[407638770,1772590238659,-151.0,0.00010459,2]
[407638772,1772590238670,-151.0,0.00010459,2]
[407638774,1772590238679,-151.0,0.00010459,2]
[407638776,1772590238689,-1110.14234917,0.00010459,2]
[407638782,1772590238730,-1120.17295683,0.00010459,2]
[407638784,1772590238740,-157.65091586,0.00010459,2]
[407638786,1772590238750,-127.73607541,0.00010465,2]
[407638895,1772590241365,-452.17692459,0.00010465,2]
[407638896,1772590241374,-78.62601478,0.00010465,2]
[407638909,1772590244036,-2108.37398522,0.00010465,2]
[407638910,1772590244046,-8.44818198,0.00010644,3]
[407638917,1772590246604,-151.55181802,0.00010644,3]
[407638918,1772590246615,-150.0,0.00010684,2]
[407638919,1772590246625,-204.69760883,0.00010739,2]
[407638920,1772590246634,-700.24914241,0.00010739,2]
[407638921,1772590246644,-800.0,0.00010799,2]
[407638922,1772590246654,-914.56960521,0.000108,2]
[407638923,1772590246663,-522.12386496,0.000108,2]
[407638924,1772590246673,-800.0,0.00010916,2]
[407638925,1772590246683,-164.90145561,0.00010951,2]
[407638926,1772590246692,-168.3888056,0.00010951,2]
[407638927,1772590246702,-174.61919141,0.00010951,2]
[407638928,1772590246711,-181.08010149,0.00010951,2]
[407638929,1772590246721,-187.78006525,0.00010951,2]
[407638930,1772590246731,-194.72792766,0.00010951,2]
[407638931,1772590246741,-201.93286099,0.00010951,2]
[407638932,1772590246750,-209.40437684,0.00010951,2]
[407638933,1772590246759,-217.15233878,0.00010951,2]
[407638934,1772590246769,-225.18697532,0.00010951,2]
[407638935,1772590246779,-557.5788265,0.00010951,2]
[407638936,1772590246790,-233.51889341,0.00010951,2]
[407638937,1772590246799,-242.15909246,0.00010951,2]
[407638938,1772590246809,-251.11897888,0.00010951,2]
[407638939,1772590246819,-260.4103811,0.00010951,2]
[407638940,1772590246830,-270.0455652,0.00010951,2]
[407638941,1772590246842,-280.03725112,0.00010951,2]
[407638942,1772590246853,-290.39862941,0.00010951,2]
[407638943,1772590246863,-301.1433787,0.00010951,2]
[407638944,1772590246872,-500.0,0.00010955,2]
[407638945,1772590246883,-500.0,0.00010955,2]
[407638946,1772590246893,-512.29507093,0.00010955,2]
[407638947,1772590246904,-500.0,0.00010955,2]
[407638948,1772590246916,-500.0,0.00010955,2]
[407638949,1772590246925,-500.0,0.00010955,2]
[407638950,1772590246935,-500.0,0.00010955,2]
[407638951,1772590246947,-9.62486207,0.00010955,2]
[407638952,1772590246960,-490.37513793,0.00010955,2]
[407638953,1772590246970,-500.0,0.00010955,2]
[407638954,1772590246980,-500.0,0.00010955,2]
[407638955,1772590246990,-500.0,0.00010955,2]
[407638956,1772590247000,-500.0,0.00010955,2]
[407638957,1772590247010,-500.0,0.00010955,2]
[407638958,1772590247019,-500.0,0.00010955,2]
[407638959,1772590247029,-638.83811711,0.00010955,2]
[407638960,1772590247038,-291.94286128,0.00010955,2]
[407638961,1772590247048,-500.0,0.00010955,2]
[407638962,1772590247057,-500.0,0.00010955,2]
[407638963,1772590247067,-500.0,0.00010955,2]
[407638964,1772590247077,-500.0,0.00010955,2]
[407638965,1772590247087,-500.0,0.00010955,2]
[407638966,1772590247096,-500.0,0.00010955,2]
[407638967,1772590247107,-500.0,0.00010955,2]
[407638968,1772590247116,-500.0,0.00010955,2]
[407638969,1772590247130,-500.0,0.00010955,2]
[407638970,1772590247141,-500.0,0.00010955,2]
[407638971,1772590247150,-202.33376044,0.00010955,2]
[407638972,1772590696646,-2525.09810012,9.875e-05,2]
[407638973,1772590696669,-1308.98592416,9.975e-05,2]
[407638975,1772590809227,5000.0,9.5e-05,2]
[407638976,1772590809311,5000.0,9.5e-05,2]
[407638977,1772590809568,5000.0,9.5e-05,2]
[407638978,1772590809836,5000.0,9.5e-05,2]
[407638979,1772590810120,5000.0,9.5e-05,2]
[407638985,1772591208544,-878.60036599,0.0001,5]
[407639007,1772591431659,-2425.80830328,0.0001,2]
[407639010,1772591431671,-13618.35365154,0.0001,2]
[407639014,1772591431711,-859.11990399,0.0001,2]
[407639016,1772591431722,-373.34388058,0.0001,2]
[407639129,1772591440395,-845.15949572,0.0001,2]
[407639133,1772591442955,-391.53494979,0.0001,2]
[407639134,1772591443430,-2338.50124233,0.0001,2]
[407639137,1772591446002,-5920.51060794,0.0001,2]
[407639138,1772591446070,-469.69413159,0.0001,2]
[407639139,1772591555432,1588.97,9.502e-05,2]
[407639140,1772591782209,6765.8436638,9.194e-05,2]
[407639161,1772592024611,1545.0351185,8.974e-05,2]
[407639162,1772592214232,-2440.0623481,9.605e-05,2]
[407639163,1772592214254,-556.0,9.702e-05,2]
[407639164,1772592214275,-522.52138,9.8e-05,2]
[407639165,1772592214296,-587.0,9.898e-05,2]
[407639166,1772592214316,-300.0,9.899e-05,2]
[407639167,1772592214337,-300.0,9.899e-05,2]
[407639168,1772592214357,-285.0,9.899e-05,2]
[407639169,1772592214377,-300.0,9.899e-05,2]
[407639170,1772592214397,-9691.53694876,9.9e-05,2]
[407639171,1772592214417,-500.0,9.997e-05,2]
[407639172,1772592214441,-500.0,9.997e-05,2]
[407639173,1772592214462,-500.63986515,9.997e-05,2]
[407639174,1772592214485,-500.0,9.997e-05,2]
[407639175,1772592214520,-500.0,9.997e-05,2]
[407639176,1772592214545,-500.0,9.997e-05,2]
[407639177,1772592214567,-500.0,9.997e-05,2]
[407639178,1772592214589,-500.0,9.997e-05,2]
[407639179,1772592214612,-500.0,9.997e-05,2]
[407639180,1772592214634,-500.0,9.997e-05,2]
[407639181,1772592214656,-500.0,9.997e-05,2]
[407639182,1772592214678,-500.0,9.997e-05,2]
[407639183,1772592214700,-500.0,9.997e-05,2]
[407639184,1772592214722,-188.83811711,9.997e-05,2]
[407639185,1772592214745,-500.0,9.997e-05,2]
[407639186,1772592214768,-500.0,9.997e-05,2]
[407639187,1772592214791,-500.0,9.997e-05,2]
[407639188,1772592214814,-500.0,9.997e-05,2]
[407639189,1772592214836,-500.0,9.997e-05,2]
[407639190,1772592214858,-500.0,9.997e-05,2]
[407639191,1772592214883,-500.0,9.997e-05,2]
[407639192,1772592214904,-209.48471186,9.997e-05,2]
[407639193,1772592214927,-500.0,9.997e-05,2]
[407639194,1772592214950,-500.0,9.997e-05,2]
[407639195,1772592214973,-500.0,9.997e-05,2]
[407639196,1772592214996,-500.0,9.997e-05,2]
[407639197,1772592215020,-500.0,9.997e-05,2]
[407639198,1772592215045,-500.0,9.997e-05,2]
[407639199,1772592215071,-500.0,9.997e-05,2]
[407639200,1772592215095,-500.0,9.997e-05,2]
[407639201,1772592215119,-500.0,9.997e-05,2]
[407639202,1772592215144,-500.0,9.997e-05,2]
[407639203,1772592215169,-500.0,9.997e-05,2]
[407639204,1772592215195,-500.0,9.997e-05,2]
[407639205,1772592215219,-500.0,9.997e-05,2]
[407639206,1772592215244,-500.0,9.997e-05,2]
[407639207,1772592215269,-500.0,9.997e-05,2]
[407639208,1772592215294,-500.0,9.997e-05,2]
[407639209,1772592215320,-500.0,9.997e-05,2]
[407639210,1772592215343,-500.0,9.997e-05,2]
[407639211,1772592215368,-500.0,9.997e-05,2]
[407639212,1772592215392,-500.0,9.997e-05,2]
[407639213,1772592215416,-500.0,9.997e-05,2]
[407639214,1772592215702,-500.0,9.997e-05,2]
[407639215,1772592215727,-595.09242453,9.997e-05,2]
[407639216,1772592215752,-500.0,9.997e-05,2]
[407639217,1772592215775,-500.0,9.997e-05,2]
[407639218,1772592215800,-500.0,9.997e-05,2]
[407639219,1772592215824,-500.0,9.997e-05,2]
[407639220,1772592215847,-500.0,9.997e-05,2]
[407639221,1772592215869,-500.0,9.997e-05,2]
[407639222,1772592215894,-500.0,9.997e-05,2]
[407639223,1772592215918,-500.0,9.997e-05,2]
[407639224,1772592215943,-500.0,9.997e-05,2]
[407639225,1772592215967,-500.0,9.997e-05,2]
[407639226,1772592215992,-500.0,9.997e-05,2]
[407639227,1772592216017,-500.0,9.997e-05,2]
[407639228,1772592216040,-500.0,9.997e-05,2]
[407639229,1772592216064,-500.0,9.997e-05,2]
[407639230,1772592216087,-500.0,9.997e-05,2]
[407639231,1772592216113,-500.0,9.997e-05,2]
[407639232,1772592216141,-500.0,9.997e-05,2]
[407639233,1772592216165,-500.0,9.997e-05,2]
[407639234,1772592216188,-500.0,9.997e-05,2]
[407639235,1772592216213,-500.0,9.997e-05,2]
[407639236,1772592216236,-500.0,9.997e-05,2]
[407639237,1772592216259,-465.67644581,9.997e-05,2]
[407639238,1772592216281,-479.86026735,9.999e-05,2]
[407639239,1772592216303,-51578.28749133,0.0001,2]
[407639240,1772592337031,-300.0,9.999e-05,2]
[407639241,1772592337052,-300.0,9.999e-05,2]
[407639242,1772592337074,-1200.0,9.999e-05,2]
[407639243,1772592337095,-8200.0,0.0001,2]
[407639244,1772592338512,-10000.0,0.0001,2]